Workbook

Sheet Sheet1
AM2: ضع اللون هنا
B3: 1 | C3: 2 | D3: 3 | E3: 4 | F3: 5 | G3: 6 | H3: 7 | I3: 8 | J3: 9 | K3: 10 | L3: 11 | M3: 12 | N3: 13 | O3: 14 | P3: 15 | Q3: 16 | R3: 17 | S3: 18 | T3: 19 | U3: 20 | V3: 21 | W3: 22 | X3: 23 | Y3: 24 | Z3: 25 | AA3: 26 | AB3: 27 | AC3: 28 | AD3: 29 | AE3: 30 | AF3: المجموع | AG3: المتوسط | AH3: المجموع بدون الخلفية | AI3: المتوسط بدون الخلفية | AL3: العدد | AM3: المجموع بدون الخلفية | AN3: المتوسط بدون الخلفية
B4: 1142 | C4: 2487 | D4: 2234 | E4: 2161 | F4: 1859 | G4: 1300 | H4: 2078 | I4: 2764 | J4: 2705 | K4: 2649 | L4: 1132 | M4: 1712 | N4: 1150 | O4: 1431 | P4: 2635 | Q4: 2692 | R4: 2328 | S4: 2572 | T4: 1446 | U4: 1078 | V4: 2054 | W4: 1100 | X4: 2737 | Y4: 2809 | Z4: 1671 | AA4: 2050 | AB4: 1322 | AC4: 2800 | AD4: 1305 | AE4: 1939 | AF4: =SUM(B4:AE4) -> 59342 | AG4: =AVERAGE(B4:AE4) -> 1978.066667 | AH4: =SUM(R4:AE4,B4:J4) -> 45941 | AI4: =AVERAGE(R4:AE4,B4:J4) -> 1997.434783 | AL4: =CountColor($AJ$2,B4:AE4) -> 23 | AM4: =SumColor($AJ$2,B4:AE4) -> 45941 | AN4: =IFERROR(AVGColor($AJ$2,B4:AE4),0) -> 1997.434783
B5: 1706 | C5: 2957 | D5: 2978 | E5: 2437 | F5: 1553 | G5: 2138 | H5: 2582 | I5: 1447 | J5: 2306 | K5: 1205 | L5: 1735 | M5: 1611 | N5: 1354 | O5: 1859 | P5: 1311 | Q5: 2227 | R5: 1003 | S5: 2539 | T5: 1016 | U5: 2469 | V5: 2850 | W5: 2333 | X5: 2212 | Y5: 2410 | Z5: 2315 | AA5: 1130 | AB5: 2777 | AC5: 1641 | AD5: 1178 | AE5: 1313 | AF5: =SUM(B5:AE5) -> 58592 | AG5: =AVERAGE(B5:AE5) -> 1953.066667 | AH5: =SUM(AC5:AE5,B5:V5) -> 45415 | AI5: =AVERAGE(AC5:AE5,B5:V5) -> 1892.291667 | AL5: =CountColor($AJ$2,B5:AE5) -> 24 | AM5: =SumColor($AJ$2,B5:AE5) -> 45415 | AN5: =IFERROR(AVGColor($AJ$2,B5:AE5),0) -> 1892.291667
B6: 1726 | C6: 1814 | D6: 1811 | E6: 1112 | F6: 2264 | G6: 1557 | H6: 1615 | I6: 1628 | J6: 2433 | K6: 2651 | L6: 2991 | M6: 2306 | N6: 2331 | O6: 1176 | P6: 1896 | Q6: 1971 | R6: 1041 | S6: 2503 | T6: 1832 | U6: 1513 | V6: 2892 | W6: 1299 | X6: 1999 | Y6: 1406 | Z6: 2835 | AA6: 1373 | AB6: 1054 | AC6: 2263 | AD6: 1730 | AE6: 2575 | AF6: 57597 | AG6: 1919.9 | AH6: =SUM(B6:AE6) -> 57597 | AI6: =AVERAGE(B6:AE6) -> 1919.9 | AL6: =CountColor($AJ$2,B6:AE6) -> 30 | AM6: =SumColor($AJ$2,B6:AE6) -> 57597 | AN6: =IFERROR(AVGColor($AJ$2,B6:AE6),0) -> 1919.9
B7: 1733 | C7: 2668 | D7: 1972 | E7: 2174 | F7: 1743 | G7: 2066 | H7: 2361 | I7: 2916 | J7: 1726 | K7: 1917 | L7: 1878 | M7: 2680 | N7: 2980 | O7: 1408 | P7: 2526 | Q7: 1484 | R7: 1515 | S7: 1529 | T7: 1918 | U7: 2371 | V7: 2921 | W7: 2030 | X7: 2690 | Y7: 2273 | Z7: 2078 | AA7: 1621 | AB7: 2167 | AC7: 2395 | AD7: 1532 | AE7: 2364 | AF7: 63636 | AG7: 2121.2 | AH7: =SUM(R7:AE7) -> 29404 | AI7: =AVERAGE(R7:AE7) -> 2100.285714 | AL7: =CountColor($AJ$2,B7:AE7) -> 14 | AM7: =SumColor($AJ$2,B7:AE7) -> 29404 | AN7: =IFERROR(AVGColor($AJ$2,B7:AE7),0) -> 2100.285714
B8: 1770 | C8: 2800 | D8: 2902 | E8: 1094 | F8: 1828 | G8: 1761 | H8: 1304 | I8: 1446 | J8: 2023 | K8: 2117 | L8: 2397 | M8: 1134 | N8: 2998 | O8: 2427 | P8: 2253 | Q8: 1590 | R8: 1547 | S8: 2303 | T8: 2402 | U8: 2912 | V8: 1300 | W8: 2907 | X8: 2425 | Y8: 1160 | Z8: 1502 | AA8: 1025 | AB8: 2799 | AC8: 2403 | AD8: 1912 | AE8: 2987 | AF8: 61428 | AG8: 2047.6 | AH8: =SUM(Z8:AE8,Q8:X8,G8:N8,B8:C8) -> 49764 | AI8: =AVERAGE(Z8:AE8,Q8:X8,G8:N8,B8:C8) -> 2073.5 | AL8: =CountColor($AJ$2,B8:AE8) -> 24 | AM8: =SumColor($AJ$2,B8:AE8) -> 49764 | AN8: =IFERROR(AVGColor($AJ$2,B8:AE8),0) -> 2073.5
AL10: يمكنك أن تجمع على حسب اللون
